fUSD/lending_fUSD_20250403
["ID","MTS","AMOUNT","RATE_DAILY","PERIOD"]
[357083139,1743700240333,-1326.9,0.0002,2]
[357083140,1743700240360,-48546.4966308,0.0002,2]
[357083141,1743700241501,-237.003082,0.0002,2]
[357083147,1743700242976,-82056.74698994,0.0002,2]
[357083162,1743700246063,-544801.66263537,0.0002,2]
[357083183,1743700249664,-156.24333332,0.0002,2]
[357083184,1743700261350,-160.72,0.00032932,120]
[357083185,1743700261378,-1.47,0.00033,14]
[357083186,1743700442781,-164.32991852,0.000199,2]
[357083187,1743700442805,-23.19860684,0.00019999,2]
[357083189,1743700547762,-208.05835475,0.000199,2]
[357083190,1743700587167,164.22614,0.0002346,31]
[357083192,1743700682523,162.21,0.00025463,120]
[357083196,1743701233159,-152.735,0.000196,2]
[357083197,1743701233182,-399.0415,0.000198,2]
[357083198,1743701233207,-435.47154552,0.00019873,2]
[357083199,1743701233230,-300.0,0.00019899,2]
[357083200,1743701233252,-105.64522229,0.00019899,2]
[357083201,1743701242096,-194.35477771,0.00019899,2]
[357083202,1743701242117,-208.05835475,0.00019899,2]
[357083203,1743701242139,-500.0,0.00019899,2]
[357083204,1743701242160,-561.3905936,0.00019899,2]
[357083205,1743701242182,-500.0,0.00019899,2]
[357083206,1743701242202,-23.73738929,0.000199,2]
[357083207,1743701242224,-7404.92679264,0.000199,2]
[357083210,1743701283807,4677.77590793,0.00015,2]
[357083211,1743701283831,4677.77590793,0.00015,2]
[357083212,1743701283853,4677.77590793,0.00015,2]
[357083213,1743701283876,4677.77590793,0.00015,2]
[357083214,1743701283898,4677.77590793,0.00015,2]
[357083215,1743701283921,4677.77590793,0.00015,2]
[357083216,1743701283945,4677.77590793,0.00015,2]
[357083217,1743701283970,4677.77590793,0.00015,2]
[357083218,1743701283993,4677.77590793,0.00015,2]
[357083219,1743701284016,4677.77590793,0.00015,2]
[357083220,1743701284045,742904.36702481,0.00015,2]
[357083221,1743701284075,1682926.04521895,0.00015,2]
[357083222,1743701284106,7300.0,0.00015,2]
[357083223,1743701284133,560150.65018298,0.00015,2]
[357083242,1743701432095,-300.0,0.00019899,2]
[357083243,1743701432104,-361776.54653036,0.000199,2]
[357083244,1743701432115,-33830.766077,0.000199,2]
[357083245,1743701432125,-451.67265121,0.000199,3]
[357083246,1743701432134,-3139.74183262,0.000199,2]
[357083247,1743701432143,-203.5092831,0.000199,2]
[357083248,1743701432154,-379.22154888,0.000199,2]
[357083249,1743701432163,-500.3479986,0.00019973,2]
[357083250,1743701432172,-500.0,0.00019973,2]
[357083251,1743701432182,-317825.26160859,0.0002,2]
[357083252,1743701432193,-35000.0,0.0002,2]
[357083253,1743701432204,-96093.27937966,0.0002,2]
[357083254,1743701432256,-430.25086577,0.0002,2]
[357083255,1743701432366,-467.06727,0.0002,2]
[357083264,1743701438036,-567.5000001,0.000198,2]
[357083265,1743701438093,-1961.65851642,0.000198,2]
[357083266,1743701438104,-511.64502855,0.000198,2]
[357083267,1743701438115,-1272.01274265,0.000198,2]
[357083268,1743701438127,-4155.67480419,0.000198,2]
[357083269,1743701438154,-377.8065,0.000198,2]
[357083270,1743701438165,-1448.48055807,0.000198,2]
[357083271,1743701438176,-1995.70000001,0.000198,2]
[357083272,1743701438187,-419.33153998,0.000198,2]
[357083273,1743701438268,-781.5493734,0.000198,2]
[357083278,1743701440362,-414.54,0.000198,2]
[357083279,1743701440470,-771.144,0.000198,2]
[357083280,1743701440529,-49868.67553663,0.000198,2]
[357083281,1743701440538,-233353.45510995,0.0002,2]
[357083282,1743701440550,-1466.43173063,0.0002,2]
[357083283,1743701440560,-81291.22102366,0.0002,2]
[357083284,1743701440745,-3358.87552,0.0002,2]
[357083424,1743701444087,-873.04153788,0.0002,2]
[357083456,1743702199908,10000.0,0.000154,2]
[357083457,1743702436102,-450.0,0.00019483,2]
[357083458,1743702436125,-646.68,0.00019581,2]
[357083459,1743702436147,-152.735,0.000196,2]
[357083460,1743702436170,-181.51383861,0.00019709,2]
[357083461,1743702441116,-106.26131441,0.00019709,2]
[357083462,1743702441137,-287.77515301,0.0001971,2]
[357083463,1743702441162,-815.2309,0.0001971,2]
[357083464,1743702441183,-290.17419941,0.000198,2]
[357083465,1743702441206,-173.48784373,0.00019809,2]
[357083466,1743702441227,-7626.60215168,0.0001981,2]
[357083467,1743702507372,-155.76,0.000197,7]
[357083468,1743702602055,-144.24,0.000197,7]
[357083469,1743702602082,-18.7984421,0.00019716,2]
[357083470,1743702607972,-229.87709353,0.00019716,2]
[357083476,1743702632312,-1.32446437,0.00019716,2]
[357083477,1743702632322,-700.0,0.000198,7]
[357083478,1743702632332,-300.0,0.00019809,2]
[357083479,1743702632343,-5905.39615597,0.0001981,2]
[357083480,1743702632578,-15707.45839988,0.0001981,2]
[357083481,1743702632588,-435.35489824,0.00019867,2]
[357083482,1743702632598,-164.32991849,0.000199,2]
[357083483,1743702632608,-185.43659524,0.000199,2]
[357083484,1743702632618,-290.17419941,0.000199,2]
[357083485,1743702632628,-1100.0,0.000199,7]
[357083486,1743702632638,-169.52880365,0.0001995,2]
[357083487,1743702632647,-201.1619028,0.0001995,2]
[357083488,1743702632657,-229.87709353,0.00019989,2]
[357083489,1743702632666,-203.73880861,0.0001999,2]
[357083490,1743702632675,-300.0,0.00019999,2]
[357083491,1743702632688,-700.0,0.0002,2]
[357083492,1743702632698,-15015.82543266,0.0002,2]
[357083493,1743702632710,-625.19937617,0.0002,2]
[357083519,1743702638140,-4941.16147954,0.0002,2]
[357083522,1743702638268,-7994.28161754,0.0002,2]
[357083523,1743702638280,-1042.82955653,0.0002,2]
[357083524,1743702638461,-54517.09294888,0.0002,2]
[357083525,1743702638516,-507.64481284,0.0002,2]
[357083715,1743702640408,-150.01332215,0.0002,2]
[357083718,1743702640425,-41852.843663,0.0002,2]
[357083746,1743702640689,-629.0,0.0002,2]
[357083748,1743702640700,-1322.58178765,0.0002,2]
[357083753,1743702640748,-233353.45510995,0.0002,2]
[357083963,1743702751128,-158.48,0.00032932,120]
[357083964,1743702751166,-2668.65,0.00042,120]
[357083965,1743702751208,-154.12,0.000424,33]
[357083966,1743702751241,-756.0,0.00043127,120]
[357083967,1743702751274,-2185.44275737,0.00043249,120]
[357083968,1743702751309,-10478.71,0.000445,60]
[357083969,1743702751339,-1000.0,0.00045,120]
[357083970,1743702751374,-10478.71,0.000459,60]
[357083971,1743702751407,-50000.0,0.00046,46]
[357083972,1743702751436,-1000.0,0.00046,90]
[357083973,1743702751472,-154.12,0.00046,39]
[357083974,1743702751506,-154.12,0.00046,39]
[357083975,1743702751542,-50000.0,0.00047,47]
[357083976,1743702751571,-3000.0,0.00047249,120]
[357083977,1743702751601,-10478.71,0.000476,60]
[357083978,1743702751628,-1000.0,0.00047804,120]
[357083979,1743702751659,-50000.0,0.00048,48]
[357083980,1743702751688,-10478.71,0.000486,60]
[357083981,1743702751719,-50000.0,0.00049,49]
[357083982,1743702751748,-56413.23007537,0.000491,120]
[357083983,1743702751777,-1570.339496,0.00049315,120]
[357083984,1743702751805,-174.479864,0.00049315,120]
[357083985,1743702751833,-1746.393489,0.00049315,120]
[357083986,1743702751860,-551.38781687,0.00049315,120]
[357083987,1743702751889,-500.0,0.00049315,120]
[357083988,1743702751920,-500.0,0.00049315,120]
[357083989,1743702751952,-668.08,0.00049315,120]
[357083990,1743702751982,-500.0,0.00049315,120]
[357083991,1743702752011,-500.0,0.00049315,120]
[357083992,1743702752039,-500.0,0.00049315,120]
[357083993,1743702752068,-500.0,0.00049315,120]
[357083994,1743702752096,-500.0,0.00049315,120]
[357083995,1743702752123,-500.0,0.00049315,120]
[357083996,1743702752150,-500.0,0.00049315,120]
[357083997,1743702752176,-500.0,0.00049315,120]
[357083998,1743702752204,-588.40930818,0.00049315,120]
[357083999,1743702752231,-500.0,0.00049315,120]
[357084000,1743702752258,-602.89,0.00049315,120]
[357084001,1743702752284,-500.0,0.00049315,120]
[357084002,1743702752311,-500.0,0.00049315,120]
[357084003,1743702752338,-500.0,0.00049315,120]
[357084004,1743702752365,-421.90690274,0.00049315,120]
[357084005,1743702752393,-500.0,0.00049315,120]
[357084006,1743702752420,-500.0,0.00049315,120]
[357084007,1743702752449,-985.24,0.00049315,120]
[357084008,1743702752477,-500.0,0.00049315,120]
[357084009,1743702752505,-500.0,0.00049315,120]
[357084010,1743702752533,-500.0,0.00049315,120]
[357084011,1743702752561,-1580.79,0.00049315,120]
[357084012,1743702752589,-500.0,0.00049315,120]
[357084013,1743702752617,-1670.9,0.00049315,120]
[357084014,1743702752645,-500.0,0.00049315,120]
[357084015,1743702752673,-2179.85,0.00049315,120]
[357084016,1743702752702,-500.0,0.00049315,120]
[357084017,1743702752730,-500.0,0.00049315,120]
[357084018,1743702752757,-500.0,0.00049315,120]
[357084019,1743702752786,-1833.35,0.00049315,120]
[357084020,1743702752814,-1059.43,0.00049315,120]
[357084021,1743702752846,-500.0,0.00049315,120]
[357084022,1743702752874,-500.0,0.00049315,120]
[357084023,1743702752905,-500.0,0.00049315,120]
[357084024,1743702752936,-615.12,0.00049315,120]
[357084025,1743702752966,-500.0,0.00049315,120]
[357084026,1743702752998,-2116.98,0.00049315,120]
[357084027,1743702753027,-1664.7,0.00049315,120]
[357084028,1743702753056,-2371.69,0.00049315,120]
[357084029,1743702753085,-500.0,0.00049315,120]
[357084030,1743702753114,-520.14947765,0.00049315,120]
[357084031,1743702753142,-1951.25,0.00049315,120]
[357084032,1743702753172,-2172.01,0.00049315,120]
[357084033,1743702753206,-1677.78,0.00049315,120]
[357084034,1743702753236,-1206.58,0.00049315,120]
[357084035,1743702753266,-2569.15,0.00049315,120]
[357084036,1743702753296,-2095.81,0.00049315,120]
[357084037,1743702753327,-2095.76,0.00049315,120]
[357084038,1743702753360,-500.0,0.00049315,120]
[357084039,1743702753392,-1739.7,0.00049315,120]
[357084040,1743702753424,-500.0,0.00049315,120]
[357084041,1743702753456,-1687.07,0.00049315,120]
[357084042,1743702753486,-2265.06,0.00049315,120]
[357084043,1743702753516,-500.0,0.00049315,120]
[357084044,1743702753545,-1685.91,0.00049315,120]
[357084045,1743702753577,-500.0,0.00049315,120]
[357084046,1743702753608,-500.0,0.00049315,120]
[357084047,1743702753637,-500.0,0.00049315,120]
[357084048,1743702753667,-500.0,0.00049315,120]
[357084049,1743702753700,-1903.06,0.00049315,120]
[357084050,1743702753729,-500.0,0.00049315,120]
[357084051,1743702753756,-558.76681629,0.00049315,120]
[357084052,1743702753786,-500.0,0.00049315,120]
[357084053,1743702753815,-2009.82,0.00049315,120]
[357084054,1743702753843,-500.0,0.00049315,120]
[357084055,1743702753873,-2140.52,0.00049315,120]
[357084056,1743702753906,-771.9,0.00049315,120]
[357084057,1743702754143,-150.0,0.00049315,120]
[357084058,1743702754190,-1568.95,0.00049315,120]
[357084059,1743702754226,-515.04355217,0.00049315,120]
[357084060,1743702754261,-500.0,0.00049315,120]
[357084061,1743702754297,-500.0,0.00049315,120]
[357084062,1743702754332,-998.19,0.00049315,120]
[357084063,1743702754366,-500.0,0.00049315,120]
[357084064,1743702754398,-500.0,0.00049315,120]
[357084065,1743702754430,-500.0,0.00049315,120]
[357084066,1743702754467,-1519.77,0.00049315,120]
[357084067,1743702754499,-1817.99,0.00049315,120]
[357084068,1743702754532,-500.0,0.00049315,120]
[357084069,1743702754565,-1674.65,0.00049315,120]
[357084070,1743702754598,-640.2566565,0.00049315,120]
[357084071,1743702754628,-500.0,0.00049315,120]
[357084072,1743702754659,-1554.9,0.00049315,120]
[357084073,1743702754692,-500.0,0.00049315,120]
[357084074,1743702754724,-1415.89,0.00049315,120]
[357084075,1743702754756,-500.0,0.00049315,120]
[357084076,1743702754786,-500.0,0.00049315,120]
[357084077,1743702754816,-500.0,0.00049315,120]
[357084078,1743702754846,-1535.52,0.00049315,120]
[357084079,1743702754875,-203.07639148,0.00049315,120]
[357084080,1743702754908,-854.16,0.00049315,120]
[357084081,1743702754938,-2083.3,0.00049315,120]
[357084082,1743702754971,-1807.91,0.00049315,120]
[357084083,1743702755003,-500.0,0.00049315,120]
[357084084,1743702755035,-2155.15,0.00049315,120]
[357084085,1743702755067,-500.0,0.00049315,120]
[357084086,1743702755096,-2101.8,0.00049315,120]
[357084087,1743702755127,-1912.76,0.00049315,120]
[357084088,1743702755157,-731.1,0.00049315,120]
[357084089,1743702755187,-500.0,0.00049315,120]
[357084090,1743702755217,-500.0,0.00049315,120]
[357084091,1743702755248,-2855.85,0.00049315,120]
[357084092,1743702755284,-1917.44,0.00049315,120]
[357084093,1743702755315,-500.0,0.00049315,120]
[357084094,1743702755347,-976.29,0.00049315,120]
[357084095,1743702755378,-500.0,0.00049315,120]
[357084096,1743702755408,-500.0,0.00049315,120]
[357084097,1743702755438,-505.64,0.00049315,120]
[357084098,1743702755470,-1398.35,0.00049315,120]
[357084099,1743702755502,-1868.38,0.00049315,120]
[357084100,1743702755532,-500.0,0.00049315,120]
[357084101,1743702755562,-1848.74,0.00049315,120]
[357084102,1743702755592,-500.0,0.00049315,120]
[357084103,1743702755622,-1939.65,0.00049315,120]
[357084104,1743702755652,-500.0,0.00049315,120]
[357084105,1743702755682,-500.0,0.00049315,120]
[357084106,1743702755711,-500.0,0.00049315,120]
[357084107,1743702755741,-500.0,0.00049315,120]
[357084108,1743702755770,-527.11,0.00049315,120]
[357084109,1743702755800,-2473.74,0.00049315,120]
[357084110,1743702755829,-324.82692571,0.00049315,120]
[357084111,1743702755858,-2090.69,0.00049315,120]
[357084112,1743702755891,-597.25,0.00049315,120]
[357084113,1743702755922,-1838.99,0.00049315,120]
[357084114,1743702755951,-500.0,0.00049315,120]
[357084115,1743702755981,-2110.49,0.00049315,120]
[357084116,1743702756014,-2100.66,0.00049315,120]
[357084117,1743702756046,-778.23,0.00049315,120]
[357084118,1743702756078,-749.23,0.00049315,120]
[357084119,1743702756107,-500.0,0.00049315,120]
[357084120,1743702756138,-1588.68,0.00049315,120]
[357084121,1743702756168,-500.0,0.00049315,120]
[357084122,1743702756198,-248.14022172,0.00049315,120]
[357084123,1743702756230,-500.0,0.00049315,120]
[357084124,1743702756261,-500.0,0.00049315,120]
[357084125,1743702756292,-574.96,0.00049315,120]
[357084126,1743702756322,-1992.38,0.00049315,120]
[357084127,1743702756352,-500.0,0.00049315,120]
[357084128,1743702756383,-169.91689624,0.00049315,120]
[357084129,1743702756415,-795.48,0.00049315,120]
[357084130,1743702756446,-500.0,0.00049315,120]
[357084131,1743702756478,-1760.21,0.00049315,120]
[357084132,1743702756510,-500.0,0.00049315,120]
[357084133,1743702756542,-500.0,0.00049315,120]
[357084134,1743702756573,-500.0,0.00049315,120]
[357084135,1743702756605,-592.04070939,0.00049315,120]
[357084136,1743702756637,-500.0,0.00049315,120]
[357084137,1743702756667,-2980.91,0.00049315,120]
[357084138,1743702756696,-1579.38,0.00049315,120]
[357084139,1743702756727,-1116.73,0.00049315,120]
[357084140,1743702756756,-1693.21,0.00049315,120]
[357084141,1743702756786,-500.0,0.00049315,120]
[357084142,1743702756815,-500.0,0.00049315,120]
[357084143,1743702756843,-500.0,0.00049315,120]
[357084144,1743702756872,-1211.63,0.00049315,120]
[357084145,1743702756902,-1853.76,0.00049315,120]
[357084146,1743702756931,-1747.91,0.00049315,120]
[357084147,1743702756963,-1699.65,0.00049315,120]
[357084148,1743702756994,-500.0,0.00049315,120]
[357084149,1743702757023,-445.08836637,0.00049315,120]
[357084150,1743702757052,-1666.14,0.00049315,120]
[357084151,1743702757082,-500.0,0.00049315,120]
[357084152,1743702757110,-919.01,0.00049315,120]
[357084153,1743702757139,-1084.23,0.00049315,120]
[357084154,1743702757168,-500.0,0.00049315,120]
[357084155,1743702757197,-500.0,0.00049315,120]
[357084156,1743702757226,-176.50053953,0.00049315,120]
[357084157,1743702757255,-1746.34,0.00049315,120]
[357084158,1743702757284,-2182.37,0.00049315,120]
[357084159,1743702757314,-1996.93,0.00049315,120]
[357084160,1743702757345,-616.61,0.00049315,120]
[357084161,1743702757374,-500.0,0.00049315,120]
[357084162,1743702757604,-353.0,0.0004941,120]
[357084163,1743702757635,-1570.339496,0.00049589,120]
[357084164,1743702757665,-1746.393489,0.00049589,120]
[357084165,1743702757694,-547.3345746,0.00049589,120]
[357084166,1743702757723,-500.0,0.00049589,120]
[357084167,1743702757752,-668.08,0.00049589,120]
[357084168,1743702757780,-500.0,0.00049589,120]
[357084169,1743702757808,-500.0,0.00049589,120]
[357084170,1743702757835,-500.0,0.00049589,120]
[357084171,1743702757864,-500.0,0.00049589,120]
[357084172,1743702757893,-500.0,0.00049589,120]
[357084173,1743702757921,-500.0,0.00049589,120]
[357084174,1743702757949,-500.0,0.00049589,120]
[357084175,1743702757981,-500.0,0.00049589,120]
[357084176,1743702758010,-500.0,0.00049589,120]
[357084177,1743702758038,-602.89,0.00049589,120]
[357084178,1743702758069,-500.0,0.00049589,120]
[357084179,1743702758097,-500.0,0.00049589,120]
[357084180,1743702758125,-500.0,0.00049589,120]
[357084181,1743702758157,-500.0,0.00049589,120]
[357084182,1743702758185,-500.0,0.00049589,120]
[357084183,1743702758213,-985.24,0.00049589,120]
[357084184,1743702758240,-500.0,0.00049589,120]
[357084185,1743702758268,-500.0,0.00049589,120]
[357084186,1743702758296,-500.0,0.00049589,120]
[357084187,1743702758324,-1580.79,0.00049589,120]
[357084188,1743702758352,-500.0,0.00049589,120]
[357084189,1743702758380,-1670.9,0.00049589,120]
[357084190,1743702758412,-500.0,0.00049589,120]
[357084191,1743702758441,-2179.85,0.00049589,120]
[357084192,1743702758472,-151.0,0.00049589,120]
[357084193,1743702758501,-302.80949349,0.00049589,120]
[357084194,1743702758531,-500.0,0.00049589,120]
[357084195,1743702758559,-1833.35,0.00049589,120]
[357084196,1743702758588,-1059.43,0.00049589,120]
[357084197,1743702758616,-500.0,0.00049589,120]
[357084198,1743702758643,-500.0,0.00049589,120]
[357084199,1743702758670,-500.0,0.00049589,120]
[357084200,1743702758698,-615.12,0.00049589,120]
[357084201,1743702758726,-151.0,0.00049589,120]
[357084202,1743702758754,-500.0,0.00049589,120]
[357084203,1743702758782,-2116.98,0.00049589,120]
[357084204,1743702758809,-1664.7,0.00049589,120]
[357084205,1743702758836,-2371.69,0.00049589,120]
[357084206,1743702758866,-500.0,0.00049589,120]
[357084207,1743702758896,-1951.25,0.00049589,120]
[357084208,1743702758925,-2172.01,0.00049589,120]
[357084209,1743702758953,-1677.78,0.00049589,120]
[357084210,1743702758982,-1206.58,0.00049589,120]
[357084211,1743702759009,-2569.15,0.00049589,120]
[357084212,1743702759036,-2095.81,0.00049589,120]
[357084213,1743702759063,-2095.76,0.00049589,120]
[357084214,1743702759092,-500.0,0.00049589,120]
[357084215,1743702759120,-1739.7,0.00049589,120]
[357084216,1743702759149,-500.0,0.00049589,120]
[357084217,1743702759178,-1687.07,0.00049589,120]
[357084218,1743702759207,-2265.06,0.00049589,120]
[357084219,1743702759234,-500.0,0.00049589,120]
[357084220,1743702759261,-1685.91,0.00049589,120]
[357084221,1743702759289,-500.0,0.00049589,120]
[357084222,1743702759321,-500.0,0.00049589,120]
[357084223,1743702759348,-500.0,0.00049589,120]
[357084224,1743702759389,-1903.06,0.00049589,120]
[357084225,1743702759418,-216.64364966,0.00049589,120]
[357084226,1743702759447,-308.3264768,0.00049589,120]
[357084227,1743702759476,-2009.82,0.00049589,120]
[357084228,1743702759504,-500.0,0.00049589,120]
[357084229,1743702759533,-2140.52,0.00049589,120]
[357084230,1743702759562,-771.9,0.00049589,120]
[357084231,1743702759590,-150.0,0.00049589,120]
[357084232,1743702759618,-1568.95,0.00049589,120]
[357084233,1743702759646,-500.0,0.00049589,120]
[357084234,1743702759674,-500.0,0.00049589,120]
[357084235,1743702759702,-998.19,0.00049589,120]
[357084236,1743702759730,-574.32498161,0.00049589,120]
[357084237,1743702759757,-500.0,0.00049589,120]
[357084238,1743702759785,-1519.77,0.00049589,120]
[357084239,1743702759813,-1817.99,0.00049589,120]
[357084240,1743702759841,-500.0,0.00049589,120]
[357084241,1743702759869,-1674.65,0.00049589,120]
[357084242,1743702759900,-500.0,0.00049589,120]
[357084243,1743702759929,-1554.9,0.00049589,120]
[357084244,1743702759960,-500.0,0.00049589,120]
[357084245,1743702759990,-1415.89,0.00049589,120]
[357084246,1743702760020,-500.0,0.00049589,120]
[357084247,1743702760049,-500.0,0.00049589,120]
[357084248,1743702760083,-500.0,0.00049589,120]
[357084249,1743702760112,-1535.52,0.00049589,120]
[357084250,1743702760141,-854.16,0.00049589,120]
[357084251,1743702760169,-2083.3,0.00049589,120]
[357084252,1743702760197,-1807.91,0.00049589,120]
[357084253,1743702760227,-500.0,0.00049589,120]
[357084254,1743702760257,-2155.15,0.00049589,120]
[357084255,1743702760285,-500.0,0.00049589,120]
[357084256,1743702760314,-2101.8,0.00049589,120]
[357084257,1743702760342,-1912.76,0.00049589,120]
[357084258,1743702760372,-731.1,0.00049589,120]
[357084259,1743702760402,-500.0,0.00049589,120]
[357084260,1743702760432,-2855.85,0.00049589,120]
[357084261,1743702760462,-1917.44,0.00049589,120]
[357084262,1743702760493,-500.0,0.00049589,120]
[357084263,1743702760522,-976.29,0.00049589,120]
[357084264,1743702760551,-500.0,0.00049589,120]
[357084265,1743702760582,-500.0,0.00049589,120]
[357084266,1743702760867,-505.64,0.00049589,120]
[357084267,1743702760898,-1398.35,0.00049589,120]
[357084268,1743702760930,-1868.38,0.00049589,120]
[357084269,1743702760961,-500.0,0.00049589,120]
[357084270,1743702760990,-1848.74,0.00049589,120]
[357084271,1743702761023,-500.0,0.00049589,120]
[357084272,1743702761053,-1939.65,0.00049589,120]
[357084273,1743702761082,-500.0,0.00049589,120]
[357084274,1743702761111,-500.0,0.00049589,120]
[357084275,1743702761139,-500.0,0.00049589,120]
[357084276,1743702761168,-500.0,0.00049589,120]
[357084277,1743702761198,-527.11,0.00049589,120]
[357084278,1743702761228,-2473.74,0.00049589,120]
[357084279,1743702761259,-2090.69,0.00049589,120]
[357084280,1743702761289,-597.25,0.00049589,120]
[357084281,1743702761318,-1838.99,0.00049589,120]
[357084282,1743702761347,-544.46008758,0.00049589,120]
[357084283,1743702761376,-2110.49,0.00049589,120]
[357084284,1743702761406,-2100.66,0.00049589,120]
[357084285,1743702761438,-778.23,0.00049589,120]
[357084286,1743702761467,-749.23,0.00049589,120]
[357084287,1743702761496,-500.0,0.00049589,120]
[357084288,1743702761527,-1588.68,0.00049589,120]
[357084289,1743702761556,-500.0,0.00049589,120]
[357084290,1743702761585,-500.0,0.00049589,120]
[357084291,1743702761616,-500.0,0.00049589,120]
[357084292,1743702761646,-574.96,0.00049589,120]
[357084293,1743702761679,-1992.38,0.00049589,120]
[357084294,1743702761710,-500.0,0.00049589,120]
[357084295,1743702761738,-795.48,0.00049589,120]
[357084296,1743702761767,-500.0,0.00049589,120]
[357084297,1743702761797,-1760.21,0.00049589,120]
[357084298,1743702761825,-500.0,0.00049589,120]
[357084299,1743702761855,-500.0,0.00049589,120]
[357084300,1743702761886,-500.0,0.00049589,120]
[357084301,1743702761918,-500.0,0.00049589,120]
[357084302,1743702761957,-2980.91,0.00049589,120]
[357084303,1743702762001,-1579.38,0.00049589,120]
[357084304,1743702762035,-1116.73,0.00049589,120]
[357084305,1743702762068,-1693.21,0.00049589,120]
[357084306,1743702762099,-534.70287734,0.00049589,120]
[357084307,1743702762128,-500.0,0.00049589,120]
[357084308,1743702762159,-500.0,0.00049589,120]
[357084309,1743702762189,-1211.63,0.00049589,120]
[357084310,1743702762223,-1853.76,0.00049589,120]
[357084311,1743702762252,-1747.91,0.00049589,120]
[357084312,1743702762282,-1699.65,0.00049589,120]
[357084313,1743702762313,-500.0,0.00049589,120]
[357084314,1743702762343,-1666.14,0.00049589,120]
[357084315,1743702762376,-500.0,0.00049589,120]
[357084316,1743702762406,-919.01,0.00049589,120]
[357084317,1743702762436,-1084.23,0.00049589,120]
[357084318,1743702762467,-248.00767043,0.00049589,120]
[357084319,1743702762496,-500.0,0.00049589,120]
[357084320,1743702762528,-1746.34,0.00049589,120]
[357084321,1743702762557,-2182.37,0.00049589,120]
[357084322,1743702762589,-1996.93,0.00049589,120]
[357084323,1743702762621,-616.61,0.00049589,120]
[357084324,1743702762652,-451.52968548,0.00049589,120]
[357084325,1743702762684,-10478.66,0.000496,60]
[357084326,1743702762715,-10478.69,0.000496,60]
[357084327,1743702762751,-154.12,0.000496,45]
[357084328,1743702762787,-154.12,0.000496,45]
[357084329,1743702762817,-1863.72278521,0.000497,40]
[357084330,1743702762847,-231166.96369968,0.000498,120]
[357084331,1743702762876,-751.19250765,0.000498,120]
[357084332,1743702762909,-151.0,0.000498,120]
[357084333,1743702762940,-151.0,0.000498,120]
[357084334,1743702762971,-151.0,0.000498,120]
[357084335,1743702763003,-1570.339496,0.00049863,120]
[357084336,1743702763032,-1746.393489,0.00049863,120]
[357084337,1743702763062,-500.0,0.00049863,120]
[357084338,1743702763092,-668.08,0.00049863,120]
[357084339,1743702763121,-500.0,0.00049863,120]
[357084340,1743702763150,-500.0,0.00049863,120]
[357084341,1743702763178,-500.0,0.00049863,120]
[357084342,1743702763209,-500.0,0.00049863,120]
[357084343,1743702763238,-500.0,0.00049863,120]
[357084344,1743702763268,-500.0,0.00049863,120]
[357084345,1743702763297,-500.0,0.00049863,120]
[357084346,1743702763327,-500.0,0.00049863,120]
[357084347,1743702763358,-500.0,0.00049863,120]
[357084348,1743702763388,-602.89,0.00049863,120]